Cogmind - Beta 17.1 @@@ ROGUE MODE // 2026.09.01 @ 20:58:39 Player: ATOM Result: Destroyed by G-34 Mercenary with Small Laser Performance ------------- Evolutions (0) 0 Regions Visited (2) 400 Robots Destroyed (27) 135 Value Destroyed (562) 562 Prototype IDs (5) 100 Alien Tech Used (0) 0 Bonus (5050) 5050 TOTAL SCORE: 6247 Bonus ------- Prayed to X0-1V1 5000 Major X0-1V1 Interference 50 Cogmind --------- Core Integrity 0/250 Matter 269/300 Energy 250/250 System Corruption 0% Temperature Hot (268) Movement Rolling (110) Ox2 Location -10/Mines Parts ------- > --- POWER (1) -------- Ion Engine > --- PROPULSION (2) --- Light Treads Wheel > --- UTILITY (2) ------ Large Storage Unit > --- WEAPON (2) ------- Light Assault Rifle Light Assault Rifle > --- INVENTORY (15) --- Heat Sink Heat Sink Targeting Computer ECM Suite Medium Armor Plating Medium Armor Plating Hacking Suite Hammer Peak State ------------ > --- POWER ------------ Ion Engine > --- PROPULSION ------- Light Treads Wheel > --- UTILITY ---------- Large Storage Unit X0-1V1's Piety Tracker > --- WEAPON ----------- Particle Gun Light Assault Rifle > --- INVENTORY -------- Ion Engine Wheel Heat Sink Heat Sink Targeting Computer ECM Suite Medium Armor Plating Medium Armor Plating Hacking Suite Light Assault Rifle Hammer [Rating: 21] Favorites ----------- Power Ion Engine Engine Ion Engine Propulsion Light Treads Treads Light Treads Wheel Wheel Utility Large Storage Unit Device X0-1V1's Piety Tracker Storage Large Storage Unit Processor Transport Network Coupler Weapon Light Assault Rifle Energy Gun Particle Gun Ballistic Gun Light Assault Rifle Impact Weapon Hammer Build | -11 -10 -10 ------- Run | Yrd Mat Min Slots Evolved . | . . . Power . | . . . Propulsion . | . . . Utility . | . . . Weapon . | . . . Parts Attached 21 | 6 13 2 Power 4 | 1 2 1 Engine 4 | 1 2 1 Core . | . . . Reactor . | . . . Propulsion 5 | 2 3 . Treads 2 | 2 . . Leg . | . . . Wheel 3 | . 3 . Hover . | . . . Flight . | . . . Utility 4 | 1 3 . Device 1 | . 1 . Storage 2 | 1 1 . Processor 1 | . 1 . Hackware . | . . . Protection . | . . . Artifact . | . . . Weapon 8 | 2 5 1 Energy Gun 3 | 1 2 . Energy Cannon . | . . . Ballistic Gun 4 | 1 2 1 Ballistic Cannon . | . . . Launcher . | . . . Special Weapon . | . . . Impact Weapon 1 | . 1 . Slashing Weapon . | . . . Piercing Weapon . | . . . Special Melee Weapon . | . . . Unidentified Prototypes 1 | . 1 . Parts Lost 6 | . 2 4 Power 2 | . 1 1 Propulsion 2 | . 1 1 Utility 1 | . . 1 Weapon 1 | . . 1 Highest Loss Streak 3 | . 2 3 To Critical Strikes . | . . . Average Backups 7 | 1 8 10 Power . | . . . Propulsion . | . . 1 Utility 3 | . 3 7 Weapon 2 | . 2 2 Tool/Special . | . . . Unused Backups 7 | . . 7 Power . | . . . Propulsion . | . . . Utility 7 | . . 7 Weapon . | . . . Tool/Special . | . . . Average Slot Usage (%) 94 | . 94 96 Engine 13 | . 13 10 Treads 16 | . 16 14 Wheel 11 | . 11 14 Device 1 | . . 14 Storage 14 | . 14 14 Processor 8 | . 9 . Energy Gun 10 | . 10 12 Ballistic Gun 14 | . 14 15 Impact Weapon 3 | . 3 . Peak Build Rating 21 | 6 21 21 Average Rating 8 | 4 8 19 On Entrance 9 | . 6 21 Avg Prop Armor Cover (%) 13 | . 13 13 Naked Turns . | . . . Heaviest Build 30 | 14 30 30 Greatest Support 40 | 40 40 10 Greatest Overweight (x) 2 | . 2 2 Average Overweight (x) 1 | . 1 2 Largest Inventory Capacity 15 | 8 15 15 Average Capacity 13 | 6 14 15 Most Carried 12 | 3 12 11 Average Carried 7 | 1 8 10 Final Capacity 15 | 8 15 15 Final Carried 11 | 3 11 8 Class Distribution -------------------- 100% | Mutant Dominant Class ---------------- Mutant | -10/Materials Mutant | -10/Mines Resources | -11 -10 -10 ----------- Run | Yrd Mat Min Matter Collected 587 | 189 391 7 Remotely . | . . . Salvage Created 773 | . 693 80 Parts 47 | . 41 6 Haulers Intercepted 2 | . 2 . Recyclers Shooed 2 | . 2 . Parts Field Recycled . | . . . Retrieved Matter . | . . . Parts Self-Destructed . | . . . Prevented . | . . . Parts Restored . | . . . Kills | -11 -10 -10 ------- Run | Yrd Mat Min Combat Hostiles Destroyed 20 | . 16 4 Melee 6 | . 6 . Guns 14 | . 10 4 Classes Destroyed 6 | . 6 . Builder 2 | . 2 . Hauler 2 | . 2 . Operator 1 | . 1 . Watcher 2 | . 2 . Swarmer 9 | . 6 3 Grunt 11 | . 10 1 Best Kill Streak 3 | . 3 3 Combat Bots Only 3 | . 3 3 Max Kills in Single Turn 1 | . 1 1 Gunslinging . | . . . Exploded . | . . . Melee 1 | . 1 . Uniques/NPCs Destroyed . | . . . Combat | -11 -10 -10 -------- Run | Yrd Mat Min Hostile Shots Fired 148 | . 106 42 Missed 32 | . 25 7 Hits 116 | . 81 35 Projectile 116 | . 81 35 Damage Taken 1221 | . 851 370 Core 253 | . 153 100 Absorbed by Shields . | . . . Regen/Repaired (Parts) 120 | . 120 . Core Remaining (%) 100 | 100 . . Volleys Fired 89 | . 71 18 Largest 2 | . 2 2 Hottest 85 | . 85 85 Shots Fired 148 | . 113 35 Gun 148 | . 113 35 Cannon . | . . . Launcher . | . . . Special . | . . . Kinetic 91 | . 71 20 Thermal 57 | . 42 15 Explosive . | . . . Electromagnetic . | . . . Robot Hit Streak 8 | . 7 8 Robot Miss Streak 4 | . 4 2 Penetration Max . | . . . Secondary Targets 3 | . 1 2 Max Gunslinging Chain 1 | . 1 1 Shots Hit Robots 98 | . 78 20 Core Hits 35 | . 28 7 Critical Kills . | . . . Critical Parts Destroyed 7 | . 6 1 Critical Strikes 9 | . 7 2 Burn 2 | . 1 1 Destroy 1 | . . 1 Smash 6 | . 6 . Melee Attacks 33 | . 33 . Impact 33 | . 33 . Slashing . | . . . Piercing . | . . . Sneak Attacks 2 | . 2 . Combat Hostiles . | . . . Follow-up Attacks . | . . . Damage Inflicted 1543 | . 1328 215 Guns 972 | . 757 215 Cannons . | . . . Explosions . | . . . Melee 571 | . 571 . Ramming . | . . . Kinetic 433 | . 322 111 Thermal 539 | . 435 104 Explosive . | . . . Electromagnetic . | . . . Impact 571 | . 571 . Slashing . | . . . Piercing . | . . . Highest Corruption 8 | . 8 8 Average Corruption 4 | . 4 8 Corruption Purged . | . . . Corruption Blocked . | . . . Effects 13 | . 11 2 Message Errors 1 | . 1 . Matter Fused 7 | . 6 1 Heat Flow Errors 1 | . 1 . Energy Discharges 1 | . 1 . Data Loss (minor) 2 | . 2 . Weapon Failures 1 | . . 1 Overload Shots . | . . . Overflow Damage 179 | . 179 . Projectiles . | . . . Explosions . | . . . Melee 179 | . 179 . Knockbacks 1 | . 1 . Impact 1 | . 1 . Kinetic . | . . . Secondary . | . . . Self-Inflicted Damage . | . . . Shots . | . . . Rammed . | . . . Targets Rammed . | . . . Kicked . | . . . Crushed . | . . . Highest Temperature 300 | . 220 300 Average Temperature 92 | . 75 145 Received Heat Transfer 447 | . 318 129 Siege Activations . | . . . Martial Activations . | . . . Shielding Activations . | . . . Robots Disrupted . | . . . Combat Hostiles . | . . . Robots Corrupted 1 | . 1 . Combat Hostiles . | . . . Parts Fried 7 | . 7 . Impact Corruptions 8 | . 8 . Robots Melted . | . . . Combat Hostiles . | . . . Parts Melted 3 | . 2 1 Heat Transferred 1480 | . 1147 333 Parts Sabotaged . | . . . Parts Stolen . | . . . Parts Stripped . | . . . Power Chain Reactions . | . . . Alert | -11 -10 -10 ------- Run | Yrd Mat Min Maximum Alert Level . | . . . Low Security (%) 100 | 100 100 100 Level 1 . | . . . Level 2 . | . . . Level 3 . | . . . Level 4 . | . . . Level 5 . | . . . High Security . | . . . Max Security . | . . . Peak Influence 69 | . 69 50 Initial . | . . . Average 19 | . 19 32 Influence Increases 570 | . 470 100 Destroy 0b10 Robot/C 400 | . 320 80 Destroy 0b10 Robot/NC 35 | . 35 . Destroy Leader 88 | . 68 20 Successful Hack 31 | . 31 . Disable Machine 15 | . 15 . Destroy Structure 1 | . 1 . Influence Decreases 540 | . 469 71 Entered New Map 1 | . . 1 Time Decay 433 | . 403 30 Lost Part 60 | . 20 40 Purge Threat 46 | . 46 . Squads Dispatched 3 | . 3 . Investigation 1 | . 1 . Extermination . | . . . Reinforcement 2 | . 2 . Assault . | . . . Garrison . | . . . Intercept . | . . . Searches Triggered . | . . . Construction Impeded . | . . . Haulers Reinforced . | . . . Active Scanning Responses . | . . . Cargo Convoy Interrupts . | . . . Stealth | -11 -10 -10 --------- Run | Yrd Mat Min Distress Signals 3 | . 3 . Communications Jammed . | . . . Distress Signals . | . . . Times Spotted 40 | . 35 5 Peak Tracking Total 5 | . 5 3 Tactical Retreats . | . . . Traps | -11 -10 -10 ------- Run | Yrd Mat Min Traps Triggered 6 | . 6 . Indirectly . | . . . Trap Hack Attempts . | . . . Triggered . | . . . Disarmed . | . . . Reprogrammed . | . . . Reused . | . . . Traps Extracted . | . . . Installed . | . . . Triggered . | . . . Machines | -11 -10 -10 ---------- Run | Yrd Mat Min Machines Disabled 1 | . 1 . Max in Single Turn 1 | . 1 . Machines Repaired . | . . . Machines Dismantled . | . . . Machines Sabotaged . | . . . Overloaded Fab Kills . | . . . Hacking | -11 -10 -10 --------- Run | Yrd Mat Min Machines Accessed 8 | . 8 . Terminals 5 | . 5 . Fabricators . | . . . Repair Stations 1 | . 1 . Recycling Units 2 | . 2 . Scanalyzers . | . . . Garrison Access . | . . . Total Hacks 21 | . 21 . Successful 12 | . 12 . Failed 9 | . 9 . Catastrophic 2 | . 2 . Database Lockouts . | . . . Manual 1 | . 1 . Terminals 17 | . 17 . Fabricators . | . . . Repair Stations 2 | . 2 . Recycling Units 2 | . 2 . Scanalyzers . | . . . Garrison Access . | . . . Terminal Hacks 8 | . 8 . Record 1 | . 1 . Prototype ID Bank 2 | . 2 . Branch Access Points 1 | . 1 . Unreport Threat 1 | . 1 . Investigation Status 1 | . 1 . Recall Investigation 1 | . 1 . Hauler Manifests 1 | . 1 . Fabricator Hacks . | . . . Repair Station Hacks 2 | . 2 . Scan Component 1 | . 1 . Repair 1 | . 1 . Recycling Unit Hacks 2 | . 2 . Report Inventory 2 | . 2 . Scanalyzer . | . . . Garrison Access Hacks . | . . . Unauthorized Hacks . | . . . Terminals . | . . . Fabricators . | . . . Repair Stations . | . . . Recycling Units . | . . . Scanalyzers . | . . . Garrison Access . | . . . Data Cores Recovered . | . . . Used . | . . . Hacking Detections 5 | . 5 . Full Trace Events . | . . . Feedback Events . | . . . Feedback Blocked . | . . . Robot Schematics Acquired . | . . . Robots Built . | . . . Authchips . | . . . Time . | . . . Total Robot Build Rating . | . . . Part Schematics Acquired . | . . . Parts Built . | . . . Authchips . | . . . Time . | . . . Total Part Build Rating . | . . . Part Studies Acquired . | . . . Parts Repaired 1 | . 1 . Time 26 | . 26 . Parts Recycled . | . . . Recycled Matter . | . . . Retrieved Matter . | . . . Retrieved Components . | . . . Parts Scanalyzed . | . . . Part Schematics Acquired . | . . . Parts Damaged . | . . . Bothacking | -11 -10 -10 ------------ Run | Yrd Mat Min Used RIF Installer . | . . . Robots Hacked . | . . . Non-combat . | . . . Combat . | . . . Robot Hacks Applied . | . . . Relay Couplers Released . | . . . Fabnet Peak Effective % . | . . . Robots Rewired . | . . . Allies Hacked . | . . . Hacks Repelled . | . . . Allies | -11 -10 -10 -------- Run | Yrd Mat Min Total Allies . | . . . Largest Group . | . . . Highest-Rated Group . | . . . Highest-Rated Ally . | . . . Total Orders . | . . . Ally Attacks . | . . . Total Damage . | . . . Kills . | . . . Allies Corrupted . | . . . Allies Melted . | . . . X0-1V1 Amusement Gains 41 | . 11 30 Average Entertainment 9 | . 10 8 Good Acts 1 | . . 1 Bad Acts 1 | . . 1 Intel | -11 -10 -10 ------- Run | Yrd Mat Min Active Infowar (turns) 1000 | . 1000 . T.N.C. 1000 | . 1000 . Robot Analysis Total . | . . . Derelict Logs Recovered . | . . . Drone Launches . | . . . Drone Recoveries . | . . . Exploration | -11 -10 -10 ------------- Run | Yrd Mat Min Turns Passed 1636 | 81 1484 71 Spaces Moved 983 | 46 929 8 Core 6 | 6 . . Treads 140 | 40 100 . Legs . | . . . Wheels 837 | . 829 8 Hover . | . . . Flight . | . . . Fastest Speed 50 | 50 110 110 Average Speed 116 | 145 115 110 Slowest Speed 240 | 160 240 110 Overloaded Moves . | . . . Propulsion Burnouts . | . . . Robots Hopped . | . . . Potential Cave-ins . | . . . Cave-ins Triggered . | . . . Exploration Rate (%) 34 | 3 95 6 Regions Visited 2 Branch Regions 1 Pre-discovered Areas . | . . . Known Exits Taken 1 | . 1 . Unknown Exits Taken 1 | 1 . . Scrap Searched . | . . . Spaces Dug . | . . . Terrain Destroyed . | . . . Melee . | . . . Projectile . | . . . AOE . | . . . Terrain Rammed . | . . . Walls Destroyed . | . . . Machines Disabled . | . . . Actions | -11 -10 -10 --------- Run | Yrd Mat Min Total 1275 | 60 1176 39 Wait 108 | . 98 10 Move 981 | 45 928 8 Hop . | . . . Pick Up 30 | 9 21 . Fast Attach . | . . . Attach 15 | 6 6 3 Detach . | . . . Swap 12 | . 12 . Drop 7 | . 7 . Fire 89 | . 71 18 Melee 33 | . 33 . Ram . | . . . Kick . | . . . Crush . | . . . Escape Stasis . | . . . Rewire . | . . . Trap . | . . . Miscellaneous . | . . . Route ------- -11/Scrapyard -10/Materials (discovered 6 exits: [*Mat x3] / *Min x2 / [*Sub]) -10/Mines History --------- Turn | Location | Event 5 | -11/Scrapyard | Discovered new exit (range 15) 82 | -11/Scrapyard | Entered Materials 169 | -10/Materials | Identified exit to Mines 311 | -10/Materials | Build established: Mutant 1048 | -10/Materials | Repaired Lgt. Treads 1091 | -10/Materials | Discovered new exit (range 12) 1102 | -10/Materials | Core integrity fell below 50% 1283 | -10/Materials | Discovered new exit (range 3) 1348 | -10/Materials | Discovered new exit (range 15) 1406 | -10/Materials | Discovered new exit (range 13) 1472 | -10/Materials | Prayed at D.C.S.S. Altar Unit 1566 | -10/Materials | Entered Mines 1613 | -10/Mines | Core integrity fell below 20% 1637 | -10/Mines | Destroyed by G-34 Mercenary with Small Laser Last Messages --------------- 01584_ S-10 Pest destroyed. 01592_ Acquired 7 matter. 01592_ X0-1V1 lends a hand with your twisted circuits (-8 system corruption). 01625_ G-47 Trooper suffers critical hit (Destroy). 01625_ Destroyed Lgt. Nuclear Core. 01626_ Particle Gun destroyed. 01628_ Wheel destroyed. 01630_ G-47 Trooper destroyed. 01630_ Switching to secondary target: G-34 Mercenary. 01631_ X0-1V1's Piety Tracker destroyed. 01631_ X0-1V1 is mildly amused. 01632_ X0-1V1 is amused. 01632_ R-06 Scavenger collects Imp. Heat Sink. 01633_ X0-1V1: "There's a penalty for shooting from the hip 'round these parts." (-5% ranged accuracy) 01637_ X0-1V1 howls with laughter! Map ----- +----------------------------------------------------+ | ?????????????????????????????????????????????????? | | ?????????????????????????????????????????????????? | | ?????????????????????????????????????????????????? | | ?????????????????????????????????????????????????? | | ?????????????????????????????????????????????????? | | ?????????????????????????????????????????????????? | | ?????????????????????????????????????????????????? | | ?????????????????????????????????????????????????? | | ?????????????????????????????????????????????????? | | ?????????????????????????????????????????????????? | | ???????????????????????? ????????????????????????? | | ???????????????????????# ????????????????????????? | | ???????????????????????# ???????????????????????? | | ???????????????????????# ???????????????????????? | | ??????????????????????? ???????????????????????? | | ???????????????????????? ???????????????????????? | | ???????????????????????? ???????????????????????? | | ???????????????????????? ???????????????????????? | | ???????????????????????? ???????????????????????? | | ????????????????????????" ##?????????????????????? | | ????????????????????????? #?????????????????????? | | ????????????????????????? ?????????????????????? | | ????????????????????????? #?????????????????????? | | ?????????????????????????# #?????????????????????? | | ?????????????????#########%#?????????????????????? | | ???????????# g @ #?????????????????????? | | ?????????????????#########r#########?????????????? | | ????????????????????????#=%= """ #?????????????? | | ????????????????????????#=%= """ #?????????????? | | ????????????????????????# = """ #?????????????? | | ????????????????????????# #?????????????? | | ????????????????????????# #?????????????? | | ????????????????????????# #?????????????? | | ????????????????????????# #?????????????? | | ????????????????????????# #?????????????? | | ????????????????????????############?????????????? | | ?????????????????????????????????????????????????? | | ?????????????????????????????????????????????????? | | ?????????????????????????????????????????????????? | | ?????????????????????????????????????????????????? | | ?????????????????????????????????????????????????? | | ?????????????????????????????????????????????????? | | ?????????????????????????????????????????????????? | | ?????????????????????????????????????????????????? | | ?????????????????????????????????????????????????? | | ?????????????????????????????????????????????????? | | ?????????????????????????????????????????????????? | | ?????????????????????????????????????????????????? | | ?????????????????????????????????????????????????? | | ?????????????????????????????????????????????????? | +----------------------------------------------------+ Best States ------------- Heat Dissipation 25 Energy Generation 10 Energy Capacity 250 Matter Stores 300 Matter Capacity 300 Sight Range 16 Terrain Scan Density 10 Evasion (%) 40 Recoil Reduction 2 Item Schematics ----------------- None Robot Schematics ------------------ None Fabricated ------------ Nothing Repaired ---------- Lgt. Treads | 14% | -10/Materials Studied --------- None Alien Tech Used ----------------- None Achievements -------------- None Challenges ------------ None Game ------ Seed ScrapStoragePlateshifter Manual? 0 Play Time 00:18:09 Cumulative 44.2 hours Start 2026.09.01 @ 20:40:22 End 2026.09.01 @ 20:58:39 Sessions 1 Manual Loads 0 Difficulty Rogue Special Mode None Game No. 64 Rogue 64 Adventurer 0 Explorer 0 Win Type - Total 0 Types 0/0/0/0/0/0/0/0/0/0 Lore% 19 Gallery% 24 Achievement% 20 Wizard Run 0 Options --------- Layout 2 ASCII 0 Keyboard 0 Movement Mouse Keybinds 0 Fullscreen 1 Font 16/X11CapsBold Map View 50x49 Zoom Use 0% Tactical HUD 1 Map Filters NONE Filters NONE Steam SD RUN: b598f896-0c23-4712-bae8-ee5bb1b6d0af